Cogmind - Beta 14 @@@ ROGUE MODE // 2025.01.16 @ 21:39:07 Player: refrshrs Result: Destroyed by Y-45 Defender with Beam Rifle Performance ------------- Evolutions (1) 500 Regions Visited (2) 400 Robots Destroyed (17) 85 Value Destroyed (401) 401 Prototype IDs (0) 0 Alien Tech Used (0) 0 Bonus (0) 0 TOTAL SCORE: 1386 Bonus ------- None Cogmind --------- Core Integrity 0/400 Matter 225/300 Energy 250/250 System Corruption 0% Temperature Cool (9) Movement Core (100) Ox1 Location -9/Materials Parts ------- > --- POWER (1) -------- (None) > --- PROPULSION (3) --- (None) > --- UTILITY (3) ------ Medium Battery Structural Scanner > --- WEAPON (2) ------- Light Assault Rifle Light Assault Rifle > --- INVENTORY (5) ---- High-capacity Matter Pod (67) Peak State ------------ > --- POWER ------------ Ion Engine > --- PROPULSION ------- Improved Hover Unit Flight Unit > --- UTILITY ---------- Medium Battery Structural Scanner > --- WEAPON ----------- Spread Laser Particle Cannon > --- INVENTORY -------- High-capacity Matter Pod Assault Rifle Light Assault Rifle Light Assault Rifle [Rating: 10] Favorites ----------- Power Ion Engine Engine Ion Engine Propulsion Flight Unit Treads Light Treads Leg Aluminum Leg Hover Unit Improved Hover Unit Flight Unit Flight Unit Utility Structural Scanner Device Structural Scanner Storage Medium Battery Weapon Assault Rifle Energy Gun Spread Laser Energy Cannon Particle Cannon Ballistic Gun Assault Rifle Launcher Rocket Launcher Build | -11 -10 -9 ------- Run | Yrd Mat Mat Slots Evolved 2 | . . 2 Power . | . . . Propulsion 1 | . . 1 Utility 1 | . . 1 Weapon . | . . . Parts Attached 22 | 6 7 9 Power 3 | 1 1 1 Engine 3 | 1 1 1 Core . | . . . Reactor . | . . . Propulsion 5 | 2 1 2 Treads 1 | 1 . . Leg 1 | 1 . . Wheel . | . . . Hover 1 | . . 1 Flight 2 | . 1 1 Utility 3 | . 3 . Device 2 | . 2 . Storage 1 | . 1 . Processor . | . . . Hackware . | . . . Protection . | . . . Artifact . | . . . Weapon 11 | 3 2 6 Energy Gun 3 | 1 2 . Energy Cannon 1 | . . 1 Ballistic Gun 6 | 2 . 4 Ballistic Cannon . | . . . Launcher 1 | . . 1 Special Weapon . | . . . Impact Weapon . | . . . Slashing Weapon . | . . . Piercing Weapon . | . . . Special Melee Weapon . | . . . Unidentified Prototypes . | . . . Parts Lost 9 | . 1 8 Power 2 | . 1 1 Propulsion 3 | . . 3 Utility . | . . . Weapon 4 | . . 4 Highest Loss Streak 4 | . 1 4 To Critical Strikes . | . . . Average Slot Usage (%) 74 | . 82 64 Engine 11 | . 13 8 Treads 5 | . 9 . Leg 5 | . 10 . Hover 2 | . . 4 Flight 6 | . 4 10 Device 12 | . 13 11 Storage 12 | . 12 11 Energy Gun 7 | . 7 8 Energy Cannon 3 | . . 7 Ballistic Gun 6 | . 10 2 Peak Build Rating 10 | 5 7 10 Average Rating 6 | 3 5 7 On Entrance 3 | . 5 6 Naked Turns . | . . . Heaviest Build 15 | 8 11 15 Greatest Support 20 | 20 20 7 Greatest Overweight (x) 4 | . 3 4 Average Overweight (x) 1 | . . 2 Largest Inventory Capacity 5 | 5 5 5 Average Capacity 5 | 5 5 5 Most Carried 5 | 2 5 5 Average Carried 3 | . 2 3 Final Capacity 5 | 5 5 5 Final Carried 4 | 1 4 4 Class Distribution -------------------- 100% | Mutant Dominant Class ---------------- Mutant | -10/Materials Mutant | -9/Materials Resources | -11 -10 -9 ----------- Run | Yrd Mat Mat Matter Collected 403 | 181 102 120 Remotely . | . . . Salvage Created 416 | . 102 314 Parts 31 | . 8 23 Haulers Intercepted . | . . . Recyclers Shooed . | . . . Parts Field Recycled . | . . . Retrieved Matter . | . . . Parts Self-Destructed . | . . . Prevented . | . . . Kills | -11 -10 -9 ------- Run | Yrd Mat Mat Combat Hostiles Destroyed 13 | . 5 8 Guns 8 | . 5 3 Cannons 4 | . . 4 AOE 1 | . . 1 Classes Destroyed 6 | . 3 3 Worker 2 | . 1 1 Recycler 1 | . . 1 Watcher 1 | . . 1 Swarmer 5 | . 3 2 Grunt 6 | . 2 4 Sentry 2 | . . 2 Best Kill Streak 4 | . 3 4 Combat Bots Only 3 | . 3 3 Max Kills in Single Turn 2 | . 1 2 Gunslinging . | . . . Exploded 1 | . . 1 Melee . | . . . Uniques/NPCs Destroyed . | . . . Combat | -11 -10 -9 -------- Run | Yrd Mat Mat Hostile Shots Fired 165 | . 51 114 Missed 41 | . 15 26 Damage Taken 1458 | . 445 1013 Core 537 | . 128 409 Absorbed by Shields . | . . . Core Remaining (%) 74 | 100 48 . Volleys Fired 52 | . 30 22 Largest 2 | . 2 2 Hottest 133 | . 60 133 Shots Fired 70 | . 31 39 Gun 59 | . 31 28 Cannon 8 | . . 8 Launcher 3 | . . 3 Special . | . . . Kinetic 41 | . 23 18 Thermal 26 | . 8 18 Explosive 3 | . . 3 Electromagnetic . | . . . Robot Hit Streak 19 | . 19 13 Robot Miss Streak 5 | . 1 5 Penetration Max . | . . . Secondary Targets 1 | . . 1 Max Gunslinging Chain 1 | . . 1 Shots Hit Robots 53 | . 27 26 Core Hits 38 | . 10 28 Critical Kills . | . . . Critical Parts Destroyed . | . . . Critical Strikes . | . . . Melee Attacks . | . . . Impact . | . . . Slashing . | . . . Piercing . | . . . Sneak Attacks . | . . . Combat Hostiles . | . . . Follow-up Attacks . | . . . Damage Inflicted 928 | . 363 565 Guns 568 | . 332 236 Cannons 123 | . . 123 Explosions 194 | . . 194 Melee . | . . . Ramming 43 | . 31 12 Kinetic 321 | . 255 66 Thermal 370 | . 77 293 Explosive 194 | . . 194 Electromagnetic . | . . . Impact . | . . . Slashing . | . . . Piercing . | . . . Highest Corruption . | . . . Average Corruption . | . . . Corruption Purged . | . . . Corruption Blocked . | . . . Overload Shots . | . . . Overflow Damage 62 | . . 62 Projectiles . | . . . Explosions 62 | . . 62 Melee . | . . . Knockbacks . | . . . Impact . | . . . Kinetic . | . . . Secondary . | . . . Self-Inflicted Damage 81 | . . 81 Shots 3 | . . 3 Rammed 25 | . 17 8 Targets Rammed 25 | . 17 8 Kicked . | . . . Crushed . | . . . Highest Temperature 335 | . 17 335 Average Temperature 134 | . 8 151 Received Heat Transfer 540 | . 267 273 Siege Activations . | . . . Robots Corrupted . | . . . Combat Hostiles . | . . . Parts Fried . | . . . Impact Corruptions . | . . . Robots Melted . | . . . Combat Hostiles . | . . . Parts Melted 1 | . . 1 Heat Transferred 617 | . 175 442 Parts Sabotaged . | . . . Parts Stolen . | . . . Parts Stripped . | . . . Power Chain Reactions . | . . . Alert | -11 -10 -9 ------- Run | Yrd Mat Mat Peak Influence 300 | . 145 300 Initial 61 | . . 61 Average 89 | . 70 129 Maximum Alert Level 1 | . . 1 Low Security (%) 90 | 100 100 77 Level 1 9 | . . 22 Level 2 . | . . . Level 3 . | . . . Level 4 . | . . . Level 5 . | . . . High Security . | . . . Max Security . | . . . Squads Dispatched 2 | . 1 1 Investigation 1 | . . 1 Extermination . | . . . Reinforcement 1 | . 1 . Assault . | . . . Garrison . | . . . Intercept . | . . . Searches Triggered . | . . . Construction Impeded . | . . . Haulers Reinforced . | . . . Active Scanning Responses . | . . . Cargo Convoy Interrupts . | . . . Stealth | -11 -10 -9 --------- Run | Yrd Mat Mat Distress Signals 1 | . . 1 Communications Jammed . | . . . Distress Signals . | . . . Times Spotted 23 | . 10 13 Peak Tracking Total 5 | . 4 5 Tactical Retreats 1 | . . 1 Traps | -11 -10 -9 ------- Run | Yrd Mat Mat Traps Triggered . | . . . Indirectly . | . . . Trap Hack Attempts . | . . . Triggered . | . . . Disarmed . | . . . Reprogrammed . | . . . Reused . | . . . Traps Extracted . | . . . Installed . | . . . Triggered . | . . . Machines | -11 -10 -9 ---------- Run | Yrd Mat Mat Machines Disabled 2 | . . 2 Max in Single Turn 1 | . . 1 Machines Repaired . | . . . Machines Dismantled . | . . . Machines Sabotaged . | . . . Overloaded Fab Kills . | . . . Hacking | -11 -10 -9 --------- Run | Yrd Mat Mat Machines Accessed 2 | . 1 1 Terminals 2 | . 1 1 Fabricators . | . . . Repair Stations . | . . . Recycling Units . | . . . Scanalyzers . | . . . Garrison Access . | . . . Total Hacks 4 | . 1 3 Successful 2 | . . 2 Failed 2 | . 1 1 Catastrophic . | . . . Database Lockouts . | . . . Manual 1 | . . 1 Terminals 4 | . 1 3 Fabricators . | . . . Repair Stations . | . . . Recycling Units . | . . . Scanalyzers . | . . . Garrison Access . | . . . Terminal Hacks 2 | . . 2 Record 2 | . . 2 Fabricator Hacks . | . . . Repair Station Hacks . | . . . Recycling Unit Hacks . | . . . Scanalyzer . | . . . Garrison Access Hacks . | . . . Unauthorized Hacks . | . . . Terminals . | . . . Fabricators . | . . . Repair Stations . | . . . Recycling Units . | . . . Scanalyzers . | . . . Garrison Access . | . . . Data Cores Recovered . | . . . Used . | . . . Hacking Detections 1 | . . 1 Full Trace Events 1 | . . 1 Feedback Events . | . . . Feedback Blocked . | . . . Robot Schematics Acquired . | . . . Robots Built . | . . . Authchips . | . . . Time . | . . . Total Robot Build Rating . | . . . Part Schematics Acquired . | . . . Parts Built . | . . . Authchips . | . . . Time . | . . . Total Part Build Rating . | . . . Parts Repaired . | . . . Time . | . . . Parts Recycled . | . . . Recycled Matter . | . . . Retrieved Matter . | . . . Retrieved Components . | . . . Parts Scanalyzed . | . . . Part Schematics Acquired . | . . . Parts Damaged . | . . . Bothacking | -11 -10 -9 ------------ Run | Yrd Mat Mat Used RIF Installer . | . . . Robots Hacked . | . . . Non-combat . | . . . Combat . | . . . Robot Hacks Applied . | . . . Relay Couplers Released . | . . . Fabnet Peak Effective % . | . . . Robots Rewired . | . . . Allies Hacked . | . . . Hacks Repelled . | . . . Allies | -11 -10 -9 -------- Run | Yrd Mat Mat Total Allies . | . . . Largest Group . | . . . Highest-Rated Group . | . . . Highest-Rated Ally . | . . . Total Orders . | . . . Ally Attacks . | . . . Total Damage . | . . . Kills . | . . . Allies Corrupted . | . . . Allies Melted . | . . . Intel | -11 -10 -9 ------- Run | Yrd Mat Mat Robot Analysis Total . | . . . Derelict Logs Recovered . | . . . Drone Launches . | . . . Drone Recoveries . | . . . Exploration | -11 -10 -9 ------------- Run | Yrd Mat Mat Turns Passed 775 | 67 381 327 Spaces Moved 339 | 43 164 132 Core 124 | 10 55 59 Treads 132 | 26 106 . Legs 7 | 7 . . Wheels . | . . . Hover 53 | . . 53 Flight 23 | . 3 20 Fastest Speed 35 | 50 150 35 Average Speed 168 | 127 168 181 Slowest Speed 250 | 160 210 250 Overloaded Moves . | . . . Propulsion Burnouts . | . . . Robots Hopped . | . . . Cave-ins Triggered . | . . . Exploration Rate (%) 17 | 3 32 18 Regions Visited 2 Branch Regions . Pre-discovered Areas . | . . . Known Exits Taken . | . . . Unknown Exits Taken 2 | 1 1 . Scrap Searched . | . . . Spaces Dug . | . . . Terrain Destroyed 18 | . . 18 Melee . | . . . Projectile . | . . . AOE 18 | . . 18 Terrain Rammed . | . . . Walls Destroyed . | . . . Machines Disabled . | . . . Actions | -11 -10 -9 --------- Run | Yrd Mat Mat Total 466 | 55 232 179 Wait 1 | 1 . . Move 337 | 42 163 132 Hop . | . . . Pick Up 16 | 5 7 4 Fast Attach 3 | 1 . 2 Attach 19 | 5 7 7 Detach 8 | 1 5 2 Swap . | . . . Drop 5 | . 3 2 Fire 52 | . 30 22 Melee . | . . . Ram 8 | . . 8 Kick . | . . . Crush 17 | . 17 . Escape Stasis . | . . . Rewire . | . . . Trap . | . . . Miscellaneous . | . . . Route ------- -11/Scrapyard -10/Materials (discovered 2 exits: *Mat / [Sub]) -9/Materials (discovered 1 exit: [*Mat]) History --------- Turn | Location | Event 12 | -11/Scrapyard | Discovered new exit (range 15) 68 | -11/Scrapyard | Entered Materials 110 | -10/Materials | Discovered new exit (range 17) 321 | -10/Materials | Build established: Mutant 328 | -10/Materials | Core integrity fell below 50% 379 | -10/Materials | Discovered new exit (range 14) 449 | -10/Materials | Entered another Materials area 449 | -9/Materials | Evolved 2 slots: Propulsion x1, Utility x1 673 | -9/Materials | Discovered new exit (range 14) 719 | -9/Materials | Core integrity fell below 50% 740 | -9/Materials | Lost 4 parts (1p1n2w) 761 | -9/Materials | Core integrity fell below 20% 776 | -9/Materials | Destroyed by Y-45 Defender with Beam Rifle Last Messages --------------- Rocket Launcher destroyed. Destroyed Rocket Launcher. Ion Engine destroyed. Destroyed Ion Engine. W-16 Scout destroyed. K-01 Serf collects debris. The unstable cave ceiling collapses. Slammed into K-01 Serf. K-01 Serf collects debris. Acquired VTOL Module. S-10 Pest destroyed. Hadron Collector disabled. Slammed into S-10 Pest. Assault Rifle destroyed. S-10 Pest destroyed. Switching to secondary target: Y-45 Defender. Critical hit (Burn: +37). Lgt. Assault Rifle destroyed. Acquired Lgt. Assault Rifle. VTOL Module destroyed. Map ----- +----------------------------------------------------+ | ???????????????????????????????????????????? | | ###???????????????????????????????????????????? | | ##???????????????????????????????????????????? | | ##???????????????????????????????????????????? | | ##???????????????????????????????????????????? | | ##??????#### ????????????????????????????????? | | ##??????#### ????????????????????????????????? | | ##?????? # ????????????????????????????????? | | ######## # ##??????????????????????? | | ########## ############??????????????????????? | | ^ ????????????????????? | | ????????????????????? | | ###########+#########+#???????????????????????? | | ######## ## ?????????? ???????????? | | ???????## """##???????????????? ???????????? | | ???????## """##??????????????## "??????????? | | ???????## """##??????????????## "??????????? | | ???????## ##?????????????? "??????????? | | ???????## ## #???????## ???? ?????? | | ???????###+#############???????##= ?? "????? | | ??????#### ### ##???????## """ T????? | | ########## ### """"" ##???????## """ "#???? | | ######## # """"" ### ####### """ ##???? | | # """"" ###+####### # ???? | | T + """"" ## Y s[# # ???? | | # """"" ## @ s[%=# """ # ???? | | ######## # """""=## " " # """ # ???? | | ########## ### """"" ## """ # """ + ???? | | ??????#### ### *== [## """ + # ???? | | ????????## #######+##### """ # # ???? | | ????????## ####### ##### ### ###### ???? | | ????????## ##?####+##### ### ###### ???? | | ????????## ##?## ## ### ##????????? | | ????????## ##?## """ #############+##????????? | | ????????## ##?## """ ## # ##????????? | | ????????## ##?## """ ## """ # ##????????? | | ????????## ##?## """ ## """ # / ##????????? | | ????????## ##?## """ # // ##????????? | | ??????#### ##?## / ##????????? | | ??????#### ? # # * ##????????? | | ?????? !!# =# % # ###+#####???????? | | ?????? %+ =%=! ##???????? | | ?????? # *!=% < ##???????? | | ??????#### # % # = ##???????? | | ?????? #### ?## ## # ######???????? | | ????????### ??########## ##### ######???????? | | ?????????## ?? ##### ##### ##???????????? | | ??????????????????????## ##??? ##???????????? | | ??????????????????????##/##??? ##???????????? | | ??????????????????????# ??? ##???????????? | +----------------------------------------------------+ Best States ------------- Heat Dissipation 28 Energy Generation 10 Energy Capacity 400 Matter Stores 300 Matter Capacity 300 Sight Range 16 Terrain Scan Density 10 Evasion (%) 50 Recoil Reduction 1 Item Schematics ----------------- None Robot Schematics ------------------ None Fabricated ------------ Nothing Alien Tech Used ----------------- None Achievements -------------- None Challenges ------------ None Game ------ Seed CoreThrowingAutogun Manual? 0 Play Time 00:18:19 Cumulative 6.0 hours Start 2025.01.16 @ 21:19:02 End 2025.01.16 @ 21:39:07 Sessions 1 Manual Loads 0 Difficulty Rogue Special Mode None Game No. 16 Rogue 16 Adventurer 0 Explorer 0 Win Type - Total 0 Types 0/0/0/0/0/0/0/0/0 Lore% 7 Gallery% 12 Achievement% 14 Wizard Run 0 Options --------- Layout 1 ASCII 0 Keyboard 1 Movement Numpad Keybinds 0 Fullscreen 1 Font 32/SmallcapsGlow Map View 50x35 Zoom Use 0% Tactical HUD 0 Map Filters NONE Filters NONE Steam 1 RUN: 17496c92-603c-4ec8-9cd7-b796eee73fcd